[Event "*** Titled Tuesday Blitz"]
[Site "Chess.com"]
[Date "2019.12.03"]
[Round "5"]
[White "GoldenShare"]
[Black "oskariot"]
[Result "0-1"]
[WhiteElo "2456"]
[BlackElo "2688"]
[TimeControl "180+2"]
[EndTime "14:05:26 PST"]
[Termination "oskariot won by resignation"]

1. e4 {[%clk 0:03:01.9]} 1... e6 {[%clk 0:02:57.7]} 2. d4 {[%clk 0:03:02.4]}
2... d5 {[%clk 0:02:56.6]} 3. Nd2 {[%clk 0:03:03.5]} 3... c5 {[%clk 0:02:57.4]}
4. Ngf3 {[%clk 0:03:03.8]} 4... Nf6 {[%clk 0:02:58.8]} 5. e5 {[%clk 0:03:04.4]}
5... Nfd7 {[%clk 0:03:00.4]} 6. c3 {[%clk 0:03:05.5]} 6... Nc6 {[%clk 0:03:02]}
7. Bd3 {[%clk 0:03:06.4]} 7... Be7 {[%clk 0:03:03.4]} 8. O-O {[%clk 0:03:06.8]}
8... Qb6 {[%clk 0:03:04.2]} 9. dxc5 {[%clk 0:03:03.9]} 9... Nxc5 {[%clk
0:03:04.8]} 10. Bc2 {[%clk 0:02:59.8]} 10... a5 {[%clk 0:03:05.8]} 11. Nb3
{[%clk 0:02:53.9]} 11... Nxb3 {[%clk 0:02:42.2]} 12. Bxb3 {[%clk 0:02:50.1]}
12... Bc5 {[%clk 0:02:39.1]} 13. Bc2 {[%clk 0:02:35.2]} 13... Bd7 {[%clk
0:02:34.1]} 14. Rb1 {[%clk 0:02:30.5]} 14... a4 {[%clk 0:02:20.1]} 15. b4 {[%clk
0:02:18.3]} 15... axb3 {[%clk 0:02:22]} 16. axb3 {[%clk 0:02:17.9]} 16... Qc7
{[%clk 0:02:13.9]} 17. Re1 {[%clk 0:02:05.2]} 17... b5 {[%clk 0:02:08.2]} 18. b4
{[%clk 0:01:44.5]} 18... Bb6 {[%clk 0:02:07.4]} 19. Be3 {[%clk 0:01:45.5]} 19...
Ra3 {[%clk 0:02:05.1]} 20. Bxb6 {[%clk 0:01:27.4]} 20... Qxb6 {[%clk 0:02:04.9]}
21. Qd3 {[%clk 0:01:28.7]} 21... Qa6 {[%clk 0:01:50.9]} 22. Ng5 {[%clk 0:01:14]}
22... h6 {[%clk 0:01:35.8]} 23. Nxf7 {[%clk 0:00:52]} 23... Kxf7 {[%clk
0:01:36.4]} 24. Qg6+ {[%clk 0:00:50.7]} 24... Kg8 {[%clk 0:01:32.7]} 25. Re3
{[%clk 0:00:51.4]} 25... Ne7 {[%clk 0:01:27.3]} 26. Qh5 {[%clk 0:00:28.7]} 26...
Ra1 {[%clk 0:01:22.4]} 27. Rf3 {[%clk 0:00:19.4]} 27... Rxb1+ {[%clk 0:01:16.6]}
28. Bxb1 {[%clk 0:00:20.3]} 28... g6 {[%clk 0:00:48.7]} 29. Qh4 {[%clk
0:00:16.8]} 29... Qa1 {[%clk 0:00:49.7]} 30. g3 {[%clk 0:00:14]} 30... Qxb1+
{[%clk 0:00:50.7]} 31. Kg2 {[%clk 0:00:15.6]} 31... g5 {[%clk 0:00:42]} 32. Qh5
{[%clk 0:00:14.1]} 32... Qg6 {[%clk 0:00:38]} 33. Qg4 {[%clk 0:00:14.4]} 33...
h5 {[%clk 0:00:38.1]} 34. Qd4 {[%clk 0:00:15.5]} 34... Nf5 {[%clk 0:00:33.3]}
35. Qa7 {[%clk 0:00:13.1]} 35... Rh7 {[%clk 0:00:34.6]} 36. h3 {[%clk
0:00:11.6]} 36... Rf7 {[%clk 0:00:35.2]} 37. Qb8+ {[%clk 0:00:12.5]} 37... Kg7
{[%clk 0:00:36.1]} 0-1

[Event "*** Titled Tuesday Blitz"]
[Site "Chess.com"]
[Date "2019.12.03"]
[Round "5"]
[White "VladimirBelous"]
[Black "pedromartinez91"]
[Result "1-0"]
[WhiteElo "2745"]
[BlackElo "2522"]
[TimeControl "180+2"]
[EndTime "14:05:35 PST"]
[Termination "VladimirBelous won on time"]

1. c4 {[%clk 0:03:01.9]} 1... e5 {[%clk 0:02:48.4]} 2. g3 {[%clk 0:03:01.7]}
2... Nf6 {[%clk 0:02:46.8]} 3. Bg2 {[%clk 0:03:03.6]} 3... d5 {[%clk 0:02:48.3]}
4. c5 {[%clk 0:03:04.7]} 4... Bxc5 {[%clk 0:02:48.7]} 5. d3 {[%clk 0:03:03.4]}
5... Nc6 {[%clk 0:02:47.5]} 6. Nf3 {[%clk 0:03:04.2]} 6... O-O {[%clk
0:02:48.1]} 7. O-O {[%clk 0:03:05.7]} 7... Bb6 {[%clk 0:02:49.1]} 8. Bg5 {[%clk
0:03:03.7]} 8... h6 {[%clk 0:02:48.6]} 9. Bxf6 {[%clk 0:03:04.7]} 9... Qxf6
{[%clk 0:02:50.2]} 10. Nc3 {[%clk 0:03:06.6]} 10... Be6 {[%clk 0:02:49.9]} 11.
Rc1 {[%clk 0:02:52.7]} 11... Rad8 {[%clk 0:02:49.4]} 12. a3 {[%clk 0:02:52.7]}
12... e4 {[%clk 0:02:50.7]} 13. Nd2 {[%clk 0:02:30.4]} 13... e3 {[%clk
0:02:51.3]} 14. fxe3 {[%clk 0:02:30.8]} 14... Bxe3+ {[%clk 0:02:52.3]} 15. Kh1
{[%clk 0:02:32.1]} 15... Qe7 {[%clk 0:02:48]} 16. Ra1 {[%clk 0:02:26.7]} 16...
Ne5 {[%clk 0:02:43]} 17. Nf3 {[%clk 0:02:20.7]} 17... Ng4 {[%clk 0:02:41.8]} 18.
Qe1 {[%clk 0:02:22.2]} 18... Bb6 {[%clk 0:02:38]} 19. Nd1 {[%clk 0:02:21.2]}
19... Rfe8 {[%clk 0:02:34.5]} 20. h3 {[%clk 0:02:18.2]} 20... Ne3 {[%clk
0:02:31.6]} 21. Nxe3 {[%clk 0:02:18.7]} 21... Bxe3 {[%clk 0:02:33.5]} 22. Qb4
{[%clk 0:02:17.2]} 22... c5 {[%clk 0:02:22.4]} 23. Qa4 {[%clk 0:02:14.7]} 23...
b6 {[%clk 0:02:14.1]} 24. Ne5 {[%clk 0:01:58.8]} 24... Qd6 {[%clk 0:02:05.3]}
25. Ng4 {[%clk 0:01:58.5]} 25... Bd7 {[%clk 0:01:49.7]} 26. Qxa7 {[%clk
0:01:49.8]} 26... Re7 {[%clk 0:01:36.3]} 27. Nxe3 {[%clk 0:01:40.4]} 27... Rxe3
{[%clk 0:01:36.4]} 28. Qb7 {[%clk 0:01:33]} 28... Be6 {[%clk 0:01:33]} 29. g4
{[%clk 0:01:31.5]} 29... Rxe2 {[%clk 0:01:31.3]} 30. Rf3 {[%clk 0:01:30.1]}
30... Qe5 {[%clk 0:01:24.5]} 31. Raf1 {[%clk 0:01:27.6]} 31... Qxb2 {[%clk
0:01:24]} 32. Qc7 {[%clk 0:01:15]} 32... Rd7 {[%clk 0:01:16.4]} 33. Qb8+ {[%clk
0:01:11.2]} 33... Kh7 {[%clk 0:01:17.2]} 34. Qg3 {[%clk 0:01:13.1]} 34... Qxa3
{[%clk 0:01:09.5]} 35. g5 {[%clk 0:01:14.1]} 35... hxg5 {[%clk 0:01:02.9]} 36.
Qxg5 {[%clk 0:01:08]} 36... Qb2 {[%clk 0:01:03]} 37. Rg3 {[%clk 0:01:06.9]}
37... Qe5 {[%clk 0:00:55.6]} 38. Qh4+ {[%clk 0:01:07.7]} 38... Kg8 {[%clk
0:00:56.5]} 39. Rg5 {[%clk 0:01:09.6]} 39... Qd4 {[%clk 0:00:42.1]} 40. Qg3
{[%clk 0:01:00]} 40... f6 {[%clk 0:00:22.6]} 41. Qb8+ {[%clk 0:00:51.6]} 41...
Kf7 {[%clk 0:00:17.2]} 42. Bf3 {[%clk 0:00:53.1]} 42... fxg5 {[%clk 0:00:08.5]}
43. Bh5+ {[%clk 0:00:53.6]} 1-0

[Event "*** Titled Tuesday Blitz"]
[Site "Chess.com"]
[Date "2019.12.03"]
[Round "5"]
[White "norwaytoadog"]
[Black "przemekpiotrowski"]
[Result "0-1"]
[WhiteElo "2281"]
[BlackElo "2423"]
[TimeControl "180+2"]
[EndTime "14:05:40 PST"]
[Termination "przemekpiotrowski won on time"]

1. e4 {[%clk 0:03:01.8]} 1... c5 {[%clk 0:03:00.3]} 2. Nf3 {[%clk 0:03:02.5]}
2... Nc6 {[%clk 0:03:01.4]} 3. Bb5 {[%clk 0:03:03.1]} 3... g6 {[%clk 0:03:01]}
4. Bxc6 {[%clk 0:03:01.7]} 4... dxc6 {[%clk 0:03:02.9]} 5. d3 {[%clk 0:03:01.8]}
5... Bg7 {[%clk 0:03:04.2]} 6. h3 {[%clk 0:03:02]} 6... e5 {[%clk 0:03:02.6]} 7.
Be3 {[%clk 0:03:01.6]} 7... Qe7 {[%clk 0:03:03.4]} 8. O-O {[%clk 0:03:00.9]}
8... Nf6 {[%clk 0:03:04.6]} 9. Nbd2 {[%clk 0:03:00.7]} 9... Nd7 {[%clk
0:03:03.1]} 10. Nc4 {[%clk 0:02:52.7]} 10... O-O {[%clk 0:02:59]} 11. Qc1 {[%clk
0:02:46.6]} 11... Re8 {[%clk 0:02:54.3]} 12. Bh6 {[%clk 0:02:46.9]} 12... Bh8
{[%clk 0:02:55.5]} 13. Nh2 {[%clk 0:02:43.9]} 13... Nf8 {[%clk 0:02:51.7]} 14.
f4 {[%clk 0:02:37.6]} 14... exf4 {[%clk 0:02:52.1]} 15. Qxf4 {[%clk 0:02:33.6]}
15... Ne6 {[%clk 0:02:50.4]} 16. Qd6 {[%clk 0:01:56.4]} 16... b5 {[%clk
0:02:24.1]} 17. Qxe7 {[%clk 0:01:52.5]} 17... Rxe7 {[%clk 0:02:26]} 18. Na5
{[%clk 0:01:41.6]} 18... Bxb2 {[%clk 0:02:26.1]} 19. Nxc6 {[%clk 0:01:20.9]}
19... Rc7 {[%clk 0:02:20.5]} 20. Rab1 {[%clk 0:01:20.4]} 20... Bc3 {[%clk
0:02:21.4]} 21. Rb3 {[%clk 0:01:01.4]} 21... b4 {[%clk 0:01:53.3]} 22. Na5
{[%clk 0:00:56.9]} 22... Nd4 {[%clk 0:01:53.1]} 23. Rbb1 {[%clk 0:00:46.1]}
23... Be6 {[%clk 0:01:48.7]} 24. Nb3 {[%clk 0:00:39.2]} 24... Nxc2 {[%clk
0:01:47]} 25. Ng4 {[%clk 0:00:29.6]} 25... Bxg4 {[%clk 0:01:39.5]} 26. hxg4
{[%clk 0:00:29.9]} 26... a5 {[%clk 0:01:35.4]} 27. Rbc1 {[%clk 0:00:25.6]} 27...
Nd4 {[%clk 0:01:33.8]} 28. Nxd4 {[%clk 0:00:17.3]} 28... cxd4 {[%clk 0:00:55.3]}
29. Rf6 {[%clk 0:00:17.6]} 29... a4 {[%clk 0:00:53.3]} 30. e5 {[%clk 0:00:18.4]}
30... b3 {[%clk 0:00:51.9]} 31. e6 {[%clk 0:00:19]} 31... bxa2 {[%clk
0:00:46.5]} 32. Rcf1 {[%clk 0:00:13.9]} 32... a1=Q {[%clk 0:00:30.1]} 33. exf7+
{[%clk 0:00:13.3]} 33... Rxf7 {[%clk 0:00:29.6]} 34. Rxf7 {[%clk 0:00:13.4]}
34... Qxf1+ {[%clk 0:00:21]} 35. Rxf1 {[%clk 0:00:13.8]} 35... a3 {[%clk
0:00:22.3]} 0-1

[Event "*** Titled Tuesday Blitz"]
[Site "Chess.com"]
[Date "2019.12.03"]
[Round "5"]
[White "vugarrasulov"]
[Black "Squirlolz"]
[Result "1-0"]
[WhiteElo "2791"]
[BlackElo "2604"]
[TimeControl "180+2"]
[EndTime "14:05:43 PST"]
[Termination "vugarrasulov won by checkmate"]

1. d4 {[%clk 0:03:01.9]} 1... Nf6 {[%clk 0:02:57]} 2. Nc3 {[%clk 0:03:01.5]}
2... d5 {[%clk 0:02:57.9]} 3. Bf4 {[%clk 0:03:02.2]} 3... e6 {[%clk 0:02:59.4]}
4. Nb5 {[%clk 0:03:01.9]} 4... Na6 {[%clk 0:02:58.5]} 5. e3 {[%clk 0:03:03.4]}
5... Be7 {[%clk 0:02:55.4]} 6. h3 {[%clk 0:03:01.3]} 6... O-O {[%clk 0:02:55.8]}
7. Nf3 {[%clk 0:03:02.8]} 7... c6 {[%clk 0:02:48.7]} 8. Nc3 {[%clk 0:03:03.4]}
8... c5 {[%clk 0:02:47.2]} 9. Be2 {[%clk 0:03:00.1]} 9... b6 {[%clk 0:02:36.7]}
10. Ne5 {[%clk 0:02:58.1]} 10... Bb7 {[%clk 0:02:37.7]} 11. O-O {[%clk
0:02:54.7]} 11... Nb4 {[%clk 0:02:32.4]} 12. Bf3 {[%clk 0:02:38.1]} 12... cxd4
{[%clk 0:02:27.6]} 13. exd4 {[%clk 0:02:38]} 13... Rc8 {[%clk 0:02:28.4]} 14.
Re1 {[%clk 0:02:34.8]} 14... Ne4 {[%clk 0:02:17.9]} 15. a3 {[%clk 0:01:45.6]}
15... Nxc3 {[%clk 0:02:18.1]} 16. bxc3 {[%clk 0:01:47.1]} 16... Nc6 {[%clk
0:02:20]} 17. Qd3 {[%clk 0:01:45.1]} 17... Nxe5 {[%clk 0:02:14.7]} 18. Bxe5
{[%clk 0:01:46.6]} 18... Bd6 {[%clk 0:02:04.1]} 19. a4 {[%clk 0:01:38.2]} 19...
Bxe5 {[%clk 0:02:02.5]} 20. Rxe5 {[%clk 0:01:39.6]} 20... Qc7 {[%clk 0:02:01.7]}
21. Re3 {[%clk 0:01:41.1]} 21... g6 {[%clk 0:01:37.1]} 22. h4 {[%clk 0:01:40.2]}
22... Qe7 {[%clk 0:01:21.3]} 23. g3 {[%clk 0:01:37.2]} 23... Rc7 {[%clk
0:01:20.7]} 24. a5 {[%clk 0:01:38.3]} 24... bxa5 {[%clk 0:01:04.9]} 25. Rxa5
{[%clk 0:01:34.6]} 25... a6 {[%clk 0:01:06.2]} 26. Qd2 {[%clk 0:01:27.1]} 26...
Rfc8 {[%clk 0:01:03.2]} 27. Be2 {[%clk 0:01:21.8]} 27... Qd6 {[%clk 0:00:58.6]}
28. h5 {[%clk 0:01:09]} 28... Qb6 {[%clk 0:00:58.3]} 29. Ra3 {[%clk 0:01:10.5]}
29... Qb2 {[%clk 0:00:28.1]} 30. Rb3 {[%clk 0:01:11.6]} 30... Qa1+ {[%clk
0:00:29.5]} 31. Kg2 {[%clk 0:01:09.2]} 31... a5 {[%clk 0:00:25.8]} 32. hxg6
{[%clk 0:00:52.6]} 32... hxg6 {[%clk 0:00:25.2]} 33. Bd3 {[%clk 0:00:53.6]}
33... a4 {[%clk 0:00:22.2]} 34. Rb6 {[%clk 0:00:55.1]} 34... a3 {[%clk 0:00:12]}
35. Bxg6 {[%clk 0:00:51.6]} 35... a2 {[%clk 0:00:13.4]} 36. Bxf7+ {[%clk
0:00:34.9]} 36... Rxf7 {[%clk 0:00:12.9]} 37. Rexe6 {[%clk 0:00:36.4]} 37... Qb1
{[%clk 0:00:07.9]} 38. Rg6+ {[%clk 0:00:36.9]} 38... Kf8 {[%clk 0:00:06.2]} 39.
Qh6+ {[%clk 0:00:37]} 39... Ke8 {[%clk 0:00:07.7]} 40. Rg8+ {[%clk 0:00:34.8]}
40... Kd7 {[%clk 0:00:08]} 41. Qd6# {[%clk 0:00:35.8]} 1-0

[Event "*** Titled Tuesday Blitz"]
[Site "Chess.com"]
[Date "2019.12.03"]
[Round "5"]
[White "marianokar"]
[Black "resha1988"]
[Result "0-1"]
[WhiteElo "2401"]
[BlackElo "2741"]
[TimeControl "180+2"]
[EndTime "14:05:47 PST"]
[Termination "resha1988 won on time"]

1. c4 {[%clk 0:03:01.9]} 1... c5 {[%clk 0:03:00.6]} 2. Nf3 {[%clk 0:02:58.6]}
2... Nc6 {[%clk 0:03:01.5]} 3. e3 {[%clk 0:02:58.7]} 3... Nf6 {[%clk 0:03:00.5]}
4. Nc3 {[%clk 0:02:52.7]} 4... g6 {[%clk 0:02:59.4]} 5. d4 {[%clk 0:02:51.8]}
5... Bg7 {[%clk 0:02:57]} 6. d5 {[%clk 0:02:51.1]} 6... Na5 {[%clk 0:02:57.6]}
7. e4 {[%clk 0:02:47.5]} 7... d6 {[%clk 0:02:58.6]} 8. h3 {[%clk 0:02:47.7]}
8... O-O {[%clk 0:02:56.9]} 9. Bd3 {[%clk 0:02:49]} 9... a6 {[%clk 0:02:40.4]}
10. O-O {[%clk 0:02:29.9]} 10... Rb8 {[%clk 0:02:37]} 11. a4 {[%clk 0:02:23.9]}
11... e5 {[%clk 0:01:55]} 12. dxe6 {[%clk 0:02:09.2]} 12... Bxe6 {[%clk
0:01:54.1]} 13. Nd5 {[%clk 0:02:07.3]} 13... Bxd5 {[%clk 0:01:49.4]} 14. exd5
{[%clk 0:02:00.9]} 14... b5 {[%clk 0:01:32.3]} 15. cxb5 {[%clk 0:01:35.9]} 15...
c4 {[%clk 0:01:34.2]} 16. Bc2 {[%clk 0:01:30.5]} 16... axb5 {[%clk 0:01:33.5]}
17. Nd4 {[%clk 0:01:15.9]} 17... b4 {[%clk 0:01:25.6]} 18. Nb5 {[%clk
0:01:12.1]} 18... Re8 {[%clk 0:01:05.7]} 19. Bf4 {[%clk 0:00:44.3]} 19... b3
{[%clk 0:01:04.4]} 20. Bb1 {[%clk 0:00:42.3]} 20... Nh5 {[%clk 0:01:03.2]} 21.
Bxd6 {[%clk 0:00:39.7]} 21... Bxb2 {[%clk 0:00:38.6]} 22. Bxg6 {[%clk
0:00:20.6]} 22... hxg6 {[%clk 0:00:32.7]} 23. Rb1 {[%clk 0:00:13.7]} 23... Rxb5
{[%clk 0:00:31.6]} 24. Rxb2 {[%clk 0:00:10.7]} 24... Qxd6 {[%clk 0:00:27.9]} 25.
axb5 {[%clk 0:00:11.4]} 25... c3 {[%clk 0:00:09.4]} 26. Rxb3 {[%clk 0:00:11.7]}
26... Nxb3 {[%clk 0:00:10.3]} 27. Qxb3 {[%clk 0:00:13.6]} 27... Nf4 {[%clk
0:00:11.1]} 28. b6 {[%clk 0:00:13.5]} 28... Ne2+ {[%clk 0:00:11.1]} 29. Kh1
{[%clk 0:00:12.7]} 29... Rb8 {[%clk 0:00:11.5]} 30. b7 {[%clk 0:00:11.2]} 30...
Qd7 {[%clk 0:00:12.6]} 31. Qc4 {[%clk 0:00:07.8]} 31... Qe7 {[%clk 0:00:03.6]}
32. Qc8+ {[%clk 0:00:04.3]} 32... Qe8 {[%clk 0:00:03.7]} 0-1

[Event "*** Titled Tuesday Blitz"]
[Site "Chess.com"]
[Date "2019.12.03"]
[Round "5"]
[White "MITerryble"]
[Black "ElGasanov"]
[Result "1-0"]
[WhiteElo "2870"]
[BlackElo "2683"]
[TimeControl "180+2"]
[EndTime "14:05:49 PST"]
[Termination "MITerryble won by resignation"]

1. e4 {[%clk 0:03:01.8]} 1... c5 {[%clk 0:02:59.7]} 2. Nf3 {[%clk 0:03:03]} 2...
Nc6 {[%clk 0:03:00.5]} 3. Bb5 {[%clk 0:03:04.1]} 3... Nf6 {[%clk 0:03:00.9]} 4.
Nc3 {[%clk 0:03:02]} 4... Qc7 {[%clk 0:03:01.6]} 5. O-O {[%clk 0:03:02.6]} 5...
Nd4 {[%clk 0:03:02.1]} 6. Re1 {[%clk 0:03:03.5]} 6... a6 {[%clk 0:03:01]} 7. Bf1
{[%clk 0:03:03.5]} 7... Ng4 {[%clk 0:03:01.8]} 8. g3 {[%clk 0:03:03.4]} 8...
Nxf3+ {[%clk 0:03:02.7]} 9. Qxf3 {[%clk 0:03:04.5]} 9... Ne5 {[%clk 0:03:03.6]}
10. Qe2 {[%clk 0:03:05.2]} 10... e6 {[%clk 0:03:02.2]} 11. f4 {[%clk 0:03:04.1]}
11... Nc6 {[%clk 0:03:00.1]} 12. d3 {[%clk 0:03:00]} 12... d6 {[%clk 0:02:57.2]}
13. Be3 {[%clk 0:02:55.9]} 13... Be7 {[%clk 0:02:56.3]} 14. Qf2 {[%clk
0:02:45.9]} 14... O-O {[%clk 0:02:52.5]} 15. g4 {[%clk 0:02:41.9]} 15... b5
{[%clk 0:02:42.8]} 16. Bg2 {[%clk 0:02:30.9]} 16... b4 {[%clk 0:02:41.8]} 17.
Ne2 {[%clk 0:02:32]} 17... Rb8 {[%clk 0:02:30.9]} 18. h4 {[%clk 0:02:28.7]}
18... a5 {[%clk 0:02:15]} 19. Rad1 {[%clk 0:02:22.3]} 19... a4 {[%clk
0:02:13.5]} 20. g5 {[%clk 0:02:18.8]} 20... f6 {[%clk 0:01:43.3]} 21. Qg3 {[%clk
0:02:08.9]} 21... b3 {[%clk 0:01:34.1]} 22. axb3 {[%clk 0:02:08.9]} 22... axb3
{[%clk 0:01:35.3]} 23. c3 {[%clk 0:02:10.5]} 23... Ra8 {[%clk 0:01:22.2]} 24.
Nc1 {[%clk 0:02:00.9]} 24... Ra1 {[%clk 0:01:14.3]} 25. Ne2 {[%clk 0:01:34.9]}
25... Ra2 {[%clk 0:01:09]} 26. Rd2 {[%clk 0:01:32.1]} 26... Bd7 {[%clk
0:00:51.7]} 27. Nc1 {[%clk 0:01:29.8]} 27... Ra1 {[%clk 0:00:49.5]} 28. Nxb3
{[%clk 0:01:30.9]} 28... Rxe1+ {[%clk 0:00:50.2]} 29. Qxe1 {[%clk 0:01:32.8]}
29... Rb8 {[%clk 0:00:48.6]} 30. Nc1 {[%clk 0:01:33.6]} 30... Na5 {[%clk
0:00:48.9]} 31. Re2 {[%clk 0:01:11.2]} 31... Bc6 {[%clk 0:00:41.9]} 32. Bh3
{[%clk 0:01:11.3]} 32... e5 {[%clk 0:00:39.1]} 33. Be6+ {[%clk 0:01:09.4]} 33...
Kh8 {[%clk 0:00:39.4]} 34. f5 {[%clk 0:01:10.6]} 34... c4 {[%clk 0:00:40.8]} 35.
Bf2 {[%clk 0:01:05.5]} 35... cxd3 {[%clk 0:00:35.9]} 36. Nxd3 {[%clk 0:01:06.8]}
36... Bb5 {[%clk 0:00:37.1]} 37. Rd2 {[%clk 0:01:01.2]} 37... Nc4 {[%clk
0:00:36.8]} 38. Rc2 {[%clk 0:00:44.8]} 38... Ba4 {[%clk 0:00:36.4]} 39. Re2
{[%clk 0:00:44.6]} 39... fxg5 {[%clk 0:00:31.9]} 40. Nb4 {[%clk 0:00:45.8]}
40... Rf8 {[%clk 0:00:26.8]} 41. Nd5 {[%clk 0:00:45.1]} 41... Qd8 {[%clk
0:00:21.7]} 42. Nxe7 {[%clk 0:00:46.3]} 42... Qxe7 {[%clk 0:00:23]} 43. Bxc4
{[%clk 0:00:47.6]} 43... gxh4 {[%clk 0:00:24.7]} 44. Bxh4 {[%clk 0:00:48.2]}
44... Qc7 {[%clk 0:00:23.2]} 45. Bd5 {[%clk 0:00:48.1]} 45... Bb5 {[%clk
0:00:24.7]} 46. c4 {[%clk 0:00:48.9]} 46... Be8 {[%clk 0:00:25.9]} 47. Qg3
{[%clk 0:00:47.9]} 47... Qa7+ {[%clk 0:00:25.5]} 48. Kh2 {[%clk 0:00:48.1]}
48... Qd4 {[%clk 0:00:26.6]} 49. Rg2 {[%clk 0:00:48.8]} 49... g6 {[%clk
0:00:26.3]} 50. Qg5 {[%clk 0:00:49.4]} 1-0

[Event "*** Titled Tuesday Blitz"]
[Site "Chess.com"]
[Date "2019.12.03"]
[Round "5"]
[White "GelmanAlexander"]
[Black "Caisachess"]
[Result "1-0"]
[WhiteElo "2505"]
[BlackElo "2254"]
[TimeControl "180+2"]
[EndTime "14:05:56 PST"]
[Termination "GelmanAlexander won by resignation"]

1. e4 {[%clk 0:03:01.9]} 1... e5 {[%clk 0:03:00.6]} 2. f4 {[%clk 0:02:56.7]}
2... d5 {[%clk 0:03:00.4]} 3. exd5 {[%clk 0:02:57.6]} 3... exf4 {[%clk
0:02:58.6]} 4. Nf3 {[%clk 0:02:57.6]} 4... Nf6 {[%clk 0:02:58]} 5. Be2 {[%clk
0:02:56.2]} 5... Bd6 {[%clk 0:02:54.1]} 6. c4 {[%clk 0:02:54.3]} 6... O-O {[%clk
0:02:54.5]} 7. d4 {[%clk 0:02:55.2]} 7... c6 {[%clk 0:02:49.7]} 8. c5 {[%clk
0:02:54.7]} 8... Bc7 {[%clk 0:02:41.1]} 9. d6 {[%clk 0:02:53]} 9... Ba5+ {[%clk
0:02:42.5]} 10. Nc3 {[%clk 0:02:52.7]} 10... Nd5 {[%clk 0:02:43.2]} 11. O-O
{[%clk 0:01:39]} 11... Bxc3 {[%clk 0:02:36.6]} 12. bxc3 {[%clk 0:01:38.9]} 12...
Nxc3 {[%clk 0:02:37.9]} 13. Qd3 {[%clk 0:01:37.3]} 13... Nxe2+ {[%clk
0:02:37.9]} 14. Qxe2 {[%clk 0:01:39.2]} 14... Re8 {[%clk 0:02:32.8]} 15. Qd3
{[%clk 0:01:33.7]} 15... g5 {[%clk 0:02:05.9]} 16. h4 {[%clk 0:01:24.6]} 16...
h6 {[%clk 0:02:03.7]} 17. hxg5 {[%clk 0:01:24.3]} 17... hxg5 {[%clk 0:02:04.6]}
18. Ne5 {[%clk 0:00:54.1]} 18... Qf6 {[%clk 0:01:59]} 19. g3 {[%clk 0:00:51.2]}
19... Bf5 {[%clk 0:01:59.2]} 20. Qb3 {[%clk 0:00:48.9]} 20... Nd7 {[%clk
0:01:53.2]} 21. gxf4 {[%clk 0:00:45.5]} 21... gxf4 {[%clk 0:01:50]} 22. Bxf4
{[%clk 0:00:44]} 22... Nxe5 {[%clk 0:01:37.2]} 23. Bxe5 {[%clk 0:00:40.7]} 23...
Qg5+ {[%clk 0:01:38.1]} 24. Kf2 {[%clk 0:00:28.2]} 24... Qd2+ {[%clk 0:01:33.9]}
25. Kf3 {[%clk 0:00:28.1]} 25... Qd3+ {[%clk 0:00:53.2]} 26. Qxd3 {[%clk
0:00:28.5]} 26... Bxd3 {[%clk 0:00:55.1]} 27. Rg1+ {[%clk 0:00:29.8]} 27... Bg6
{[%clk 0:00:56.5]} 28. Rh1 {[%clk 0:00:27.8]} 28... f6 {[%clk 0:00:51.4]} 29.
Rag1 {[%clk 0:00:25.5]} 29... Kf7 {[%clk 0:00:48.5]} 30. Rh6 {[%clk 0:00:21.3]}
30... Rg8 {[%clk 0:00:36.3]} 31. Bf4 {[%clk 0:00:21.7]} 31... Be4+ {[%clk
0:00:31.2]} 32. Kxe4 {[%clk 0:00:21.1]} 32... Rxg1 {[%clk 0:00:28.7]} 33. Kf5
{[%clk 0:00:14.8]} 33... Rag8 {[%clk 0:00:12.4]} 34. Rxf6+ {[%clk 0:00:14.6]}
34... Ke8 {[%clk 0:00:13.8]} 35. Ke6 {[%clk 0:00:15]} 35... Re1+ {[%clk
0:00:13.2]} 36. Be5 {[%clk 0:00:16.3]} 36... Rf8 {[%clk 0:00:13]} 37. d7+ {[%clk
0:00:17]} 1-0

[Event "*** Titled Tuesday Blitz"]
[Site "Chess.com"]
[Date "2019.12.03"]
[Round "5"]
[White "Egorov_Pavel"]
[Black "Witik"]
[Result "0-1"]
[WhiteElo "2371"]
[BlackElo "2593"]
[TimeControl "180+2"]
[EndTime "14:05:58 PST"]
[Termination "Witik won by checkmate"]

1. d4 {[%clk 0:03:01.9]} 1... Nf6 {[%clk 0:03:00.4]} 2. c4 {[%clk 0:03:03.3]}
2... g6 {[%clk 0:02:59.1]} 3. Nc3 {[%clk 0:03:04.6]} 3... Bg7 {[%clk 0:03:00.2]}
4. e4 {[%clk 0:03:05.5]} 4... d6 {[%clk 0:03:01.7]} 5. Nf3 {[%clk 0:03:06.9]}
5... O-O {[%clk 0:03:03]} 6. Be2 {[%clk 0:03:08.4]} 6... e5 {[%clk 0:03:04.7]}
7. O-O {[%clk 0:03:09.7]} 7... Nc6 {[%clk 0:03:06.3]} 8. d5 {[%clk 0:03:10.6]}
8... Ne7 {[%clk 0:03:07.6]} 9. b4 {[%clk 0:03:11.9]} 9... Nh5 {[%clk 0:03:08.3]}
10. Re1 {[%clk 0:03:13.3]} 10... Nf4 {[%clk 0:03:09.3]} 11. Bf1 {[%clk
0:03:14.8]} 11... a5 {[%clk 0:03:10.4]} 12. bxa5 {[%clk 0:03:15.2]} 12... Rxa5
{[%clk 0:03:11.2]} 13. Nd2 {[%clk 0:03:13.7]} 13... c5 {[%clk 0:03:11.1]} 14.
Nb3 {[%clk 0:03:12.6]} 14... Ra6 {[%clk 0:03:12]} 15. a4 {[%clk 0:03:00.1]}
15... Kh8 {[%clk 0:03:09]} 16. a5 {[%clk 0:02:57.1]} 16... f5 {[%clk 0:02:32]}
17. Ra2 {[%clk 0:02:30.8]} 17... g5 {[%clk 0:02:00.4]} 18. f3 {[%clk 0:02:06.3]}
18... Neg6 {[%clk 0:01:57.3]} 19. g3 {[%clk 0:02:07]} 19... g4 {[%clk
0:01:49.9]} 20. gxf4 {[%clk 0:01:53.5]} 20... exf4 {[%clk 0:01:50.1]} 21. Ne2
{[%clk 0:01:47.2]} 21... fxe4 {[%clk 0:01:47.6]} 22. Bb2 {[%clk 0:01:23.7]}
22... Bxb2 {[%clk 0:01:41.1]} 23. Rxb2 {[%clk 0:01:24]} 23... exf3 {[%clk
0:01:12.3]} 24. Nc3 {[%clk 0:01:23.3]} 24... Qh4 {[%clk 0:01:03.3]} 25. Ne4
{[%clk 0:01:13.2]} 25... Bf5 {[%clk 0:00:30.7]} 26. Bd3 {[%clk 0:01:05.8]} 26...
Ne5 {[%clk 0:00:29.9]} 27. Rf1 {[%clk 0:00:39.4]} 27... g3 {[%clk 0:00:29.8]}
28. Rxf3 {[%clk 0:00:32.7]} 28... Bg4 {[%clk 0:00:27.7]} 29. hxg3 {[%clk
0:00:25.8]} 29... Bxf3 {[%clk 0:00:28.6]} 30. gxh4 {[%clk 0:00:21.3]} 30... Bxd1
{[%clk 0:00:29.5]} 31. Bb1 {[%clk 0:00:11.2]} 31... Nxc4 {[%clk 0:00:27.7]} 32.
Rf2 {[%clk 0:00:04.8]} 32... Bxb3 {[%clk 0:00:28.2]} 33. Ng5 {[%clk 0:00:04.5]}
33... Rxa5 {[%clk 0:00:20.6]} 34. Ne6 {[%clk 0:00:05.8]} 34... Rg8+ {[%clk
0:00:21.9]} 35. Kh2 {[%clk 0:00:06]} 35... Ra1 {[%clk 0:00:21.1]} 36. Be4 {[%clk
0:00:05.6]} 36... Ne5 {[%clk 0:00:21.8]} 37. Bf5 {[%clk 0:00:03.7]} 37... Bxd5
{[%clk 0:00:21.4]} 38. Kh3 {[%clk 0:00:03.1]} 38... Rh1+ {[%clk 0:00:20]} 39.
Rh2 {[%clk 0:00:04.6]} 39... Bg2# {[%clk 0:00:17.8]} 0-1